Workbook

Sheet ORÇAMENTO
A1: <---- NUMERAR SERVIÇOS PARA CPU | C1: Ministério da Integração e do Desenvolvimento Regional - MIDR
C2: Companhia de Desenvolvimento dos Vales do São Francisco e do Parnaíba
C3: 1ª Superintendência Regional
B5: OBRA: | C5: PAVIMENTAÇÃO ASFÁLTICA EM PMF - VIAS DIVERSAS - RIO PARDO DE MINAS -MG
B6: DATA: | C6: SETEMBRO DE 2023 | G6: BDI Serviços: | I6: ='BDI SERV'!D31/100 -> 0.2462
B7: PRAZO DE EXECUÇÃO: 150 DIAS | G7: BDI Fornecimento: | I7: ='BDI FORN'!D31/100 -> 0.15 | M7: .
B8: ITEM | C8: DISCRIMINAÇÃO | D8: REFER. | E8: UNID. | F8: QUANT. | G8: P. UNITÁRIO | H8: P.UNIT.C/ BDI | I8: P. TOTAL
A9: A | B9: 1 | C9: SERVIÇOS PRELIMINARES | I9: =SUM(I10:I14) -> 117122.68
A10: 1 | B10: 1.1 | C10: MOBILIZAÇÃO E DESMOBILIZAÇÃO | D10: CPU.1 | E10: GL | F10: 1 | G10: =VLOOKUP(A10,CPU!$A$1:$N$4716,9) -> 10220.7 | H10: =VLOOKUP(A10,CPU!$A$1:$N$4716,10) -> 12737.03634 | I10: =ROUND(F10*H10,2) -> 12737.04
A11: 2 | B11: 1.2 | C11: ADMINISTRAÇÃO LOCAL | D11: CPU.2 | E11: GL | F11: 1 | G11: =VLOOKUP(A11,CPU!$A$1:$N$4716,9) -> 65613.15 | H11: =VLOOKUP(A11,CPU!$A$1:$N$4716,10) -> 81767.10753 | I11: =ROUND(F11*H11,2) -> 81767.11
A12: 3 | B12: 1.3 | C12: CANTEIRO DE OBRAS | D12: CPU.3 | E12: GL | F12: 1 | G12: =VLOOKUP(A12,CPU!$A$1:$N$4716,9) -> 11337.75 | H12: =VLOOKUP(A12,CPU!$A$1:$N$4716,10) -> 14129.10405 | I12: =ROUND(F12*H12,2) -> 14129.1
A13: 4 | B13: 1.4 | C13: PLACA DE OBRA EM CHAPA DE AÇO GALVANIZADO | D13: 74209/001 | E13: M2 | F13: 4.5 | G13: =VLOOKUP(A13,CPU!$A$1:$N$4716,9) -> 340.5 | H13: =VLOOKUP(A13,CPU!$A$1:$N$4716,10) -> 424.3311 | I13: =ROUND(F13*H13,2) -> 1909.49
A14: 5 | B14: 1.5 | C14: SERVIÇOS TOPOGRÁFICOS PARA PAVIMENTAÇÃO, INCLUSIVE NOTA DE SERVIÇO, ACOMPANHAMENTO E GREIDE | D14: 99064 | E14: M2 | F14: 16000 | G14: =VLOOKUP(A14,CPU!$A$1:$N$4716,9) -> 0.33 | H14: =VLOOKUP(A14,CPU!$A$1:$N$4716,10) -> 0.411246 | I14: =ROUND(F14*H14,2) -> 6579.94
A15: B | B15: 2 | C15: PAVIMENTAÇÃO | I15: =SUM(I16:I23) -> 492750.48
A16: 6 | B16: 2.1 | C16: ESCAVAÇÃO HORIZONTAL EM SOLO DE 1A CATEGORIA | D16: 101116 | E16: M3 | F16: 6500 | G16: =VLOOKUP(A16,CPU!$A$1:$N$4716,9) -> 2.2 | H16: =VLOOKUP(A16,CPU!$A$1:$N$4716,10) -> 2.74164 | I16: =ROUND(F16*H16,2) -> 17820.66
A17: 7 | B17: 2.2 | C17: CARGA, MANOBRA E DESCARGA DE SOLOS E MATERIAIS GRANULARES EM CAMINHÃO BASCULANTE - DESCARGA LIVRE | D17: 100976 | E17: M3 | F17: 6500 | G17: =VLOOKUP(A17,CPU!$A$1:$N$4716,9) -> 5.22 | H17: =VLOOKUP(A17,CPU!$A$1:$N$4716,10) -> 6.505164 | I17: =ROUND(F17*H17,2) -> 42283.57
A18: 8 | B18: 2.3 | C18: REGULARIZAÇÃO E COMPACTAÇÃO DE SUBLEITO | D18: 100576 | E18: M2 | F18: 15800 | G18: =VLOOKUP(A18,CPU!$A$1:$N$4716,9) -> 2.57 | H18: =VLOOKUP(A18,CPU!$A$1:$N$4716,10) -> 3.202734 | I18: 50603.2
A19: 9 | B19: 2.4 | C19: EXECUÇÃO E COMPACTAÇÃO DE BASE E OU SUB BASE PARA PAVIMENTAÇÃO DE SOLOS DE COMPORTAMENTO LATERÍTICO - EXCLUSIVE SOLO, ESCAVAÇÃO, CARGA E TRANSPORTE | D19: 96388 | E19: M3 | F19: 3200 | G19: =VLOOKUP(A19,CPU!$A$1:$N$4716,9) -> 12.47 | H19: =VLOOKUP(A19,CPU!$A$1:$N$4716,10) -> 15.540114 | I19: 49728.36
B20: 2.4.1 | C20: CASCALHO DE CAVA (EXCLUSIVE CARGA/TRANSPORTE) | D20: - | E20: M3 | F20: 3200 | G20: FORNECIDO PELA PREFEITURA | I20: -
A21: 10 | B21: 2.5 | C21: IMPRIMAÇÃO COM EMULSÃO ASFÁLTICA DE IMPRIMAÇÃO (EAI) | D21: 96401 | E21: M2 | F21: 15800 | G21: =VLOOKUP(A21,CPU!$A$1:$N$4716,9) -> 1.23 | H21: =VLOOKUP(A21,CPU!$A$1:$N$4716,10) -> 1.532826 | I21: 24218.65
A22: 11 | B22: 2.6 | C22: PINTURA DE LIGAÇÃO COM EMULSÃO ASFÁLTICA RR-1C | D22: 96402 | E22: M2 | F22: 13800 | G22: =VLOOKUP(A22,CPU!$A$1:$N$4716,9) -> 1.01 | H22: =VLOOKUP(A22,CPU!$A$1:$N$4716,10) -> 1.258662 | I22: 17369.54
A23: 12 | B23: 2.7 | C23: EXECUÇÃO DE PAVIMENTO COM APLICAÇÃO DE PRÉ-MISTURADO A FRIO, CAMADA DE ROLAMENTO - EXCLUSIVE TRANSPORTE | D23: 100624 | E23: M3 | F23: 560 | G23: =VLOOKUP(A23,CPU!$A$1:$N$4716,9) -> 416.59 | H23: =VLOOKUP(A23,CPU!$A$1:$N$4716,10) -> 519.154458 | I23: 290726.5
A24: C | B24: 3 | C24: TRANSPORTE DE MATERIAIS | I24: =SUM(I25:I26) -> 130178.06
A25: 13 | B25: 3.1 | C25: TRANSPORTE COM CAMINHÃO BASCULANTE, EM VIA URBANA EM REVESTIMENTO PRIMÁRIO | D25: 95426 | E25: M3XKM | F25: 26000 | G25: =VLOOKUP(A25,CPU!$A$1:$N$4716,9,0) -> 1.94 | H25: =VLOOKUP(A25,CPU!$A$1:$N$4716,10) -> 2.417628 | I25: =ROUND(F25*H25,2) -> 62858.33
A26: 14 | B26: 3.2 | C26: TRANSPORTE COM CAMINHÃO BASCULANTE, EM VIA URBANA PAVIMENTADA | D26: 95427 | E26: M3XKM | F26: 74000.00388 | G26: =VLOOKUP(A26,CPU!$A$1:$N$4716,9,0) -> 0.73 | H26: =VLOOKUP(A26,CPU!$A$1:$N$4716,10,0) -> 0.909726 | I26: =ROUND(F26*H26,2) -> 67319.73
A27: E | B27: 4 | C27: OBRAS COMPLEMENTARES | I27: =SUM(I28:I33) -> 401514.94
A28: 15 | B28: 4.1 | C28: GUIA (MEIO-FIO) E SARJETA CONJUGADOS DE CONCRETO, MOLDADA IN LOCO EM TRECHO RETO COM EXTRUSORA, 45 CM BASE (15 CM BASE DA GUIA + SARJETA (30 X 0,07))X 22 CM ALTURA | D28: 94267 | E28: M | F28: 4200 | G28: =VLOOKUP(A28,CPU!$A$1:$N$4716,9,0) -> 57.32 | H28: =VLOOKUP(A28,CPU!$A$1:$N$4716,10,0) -> 71.432184 | I28: =ROUND(F28*H28,2) -> 300015.17
A29: 16 | B29: 4.2 | C29: FORNECIMENTO E INSTALAÇÃO DE PLACA DE SINALIZAÇÃO VIÁRIA - REGULAMENTAÇÃO (PARE) | D29: CPU.4 | E29: UNID | F29: 25 | G29: =VLOOKUP(A29,CPU!$A$1:$N$4716,9,0) -> 482.58 | H29: =VLOOKUP(A29,CPU!$A$1:$N$4716,10,0) -> 601.391196 | I29: =ROUND(F29*H29,2) -> 15034.78
A30: 16.5 | B30: 4.3 | C30: FORNECIMENTO E INSTALAÇÃO DE PLACA DE SINALIZAÇÃO VIÁRIA - REGULAMENTAÇÃO (FAIXA DE PEDESTRE E OUTROS) - CONFORME PROJETO | D30: CPU.5 | E30: UNID | F30: 25 | G30: =VLOOKUP(A30,CPU!$A$1:$N$4716,9,0) -> 415.85 | H30: =VLOOKUP(A30,CPU!$A$1:$N$4716,10,0) -> 518.23227 | I30: =ROUND(F30*H30,2) -> 12955.81
A31: 17 | B31: 4.4 | C31: PINTURA DE EIXO VIÁRIO SOBRE ASFALTO COM TINTA RETRORREFLETIVA A BASE DE RESINA ACRÍLICA COM MICROESFERAS DE VIDRO, APLICAÇÃO MECÂNICA COM DEMARCADORA AUTOPROPELIDA - ESPESSURA DE 0,10 MM | D31: 102512 | E31: M | F31: 6500 | G31: =VLOOKUP(A31,CPU!$A$1:$N$4716,9,0) -> 5.84 | H31: =VLOOKUP(A31,CPU!$A$1:$N$4716,10,0) -> 7.28 | I31: =ROUND(F31*H31,2) -> 47320
A32: 17.1 | B32: 4.5 | C32: PINTURA DE FAIXA DE PEDESTRE OU ZEBRADA TINTA RETRORREFLETIVA A BASE DE RESINA ACRÍLICA COM MICROESFERAS DE VIDRO, E = 30 CM, APLICAÇÃO MANUAL | D32: 102509 | E32: M2 | F32: 500 | G32: =VLOOKUP(A32,CPU!$A$1:$N$4716,9,0) -> 25.52 | H32: =VLOOKUP(A32,CPU!$A$1:$N$4716,10,0) -> 31.8 | I32: =ROUND(F32*H32,2) -> 15900
A33: 17.2 | B33: 4.6 | C33: FORNECIMENTO E INSTALAÇÃO DE PLACA DE AÇO PARA IDENTIFICACAO DE RUA, *45 CM X 20* CM, INCLUSIVE SUPORTE EM TUBO DE AÇO GALVANIZADO (02 PLACAS POR SUPORTE) | D33: CPU.6 | E33: UNID. | F33: 22 | G33: =VLOOKUP(A33,CPU!$A$1:$N$4716,9,0) -> 375.29 | H33: =VLOOKUP(A33,CPU!$A$1:$N$4716,10,0) -> 467.69 | I33: 10289.18
A34: F | B34: 5 | C34: TRANSPORTE DE MATERIAL ASFÁLTICO (BDI DIFERENCIADO) | I34: =SUM(I35:I36) -> 58121
A35: 18 | B35: 5.1 | C35: TRANSPORTE COM CAMINHÃO TANQUE DE TRANSPORTE DE MATERIAL ASFÁLTICO DE 30000 L, EM VIA URBANA PAVIMENTADA | D35: 102331 | E35: TXKM | F35: 92000 | G35: =VLOOKUP(A35,CPU!$A$1:$N$4716,9,0) -> 0.52 | H35: =VLOOKUP(A35,CPU!$A$1:$N$4716,10,0) -> 0.598 | I35: =ROUND(F35*H35,2) -> 55016
A36: 19 | B36: 5.2 | C36: TRANSPORTE COM CAMINHÃO BASCULANTE, EM VIA URBANA PAVIMENTADA - MASSA ASFÁLTICA (PMF) | D36: 95430 | E36: TXKM | F36: 6000 | G36: =VLOOKUP(A36,CPU!$A$1:$N$4716,9,0) -> 0.45 | H36: =VLOOKUP(A36,CPU!$A$1:$N$4716,10,0) -> 0.5175 | I36: =ROUND(F36*H36,2) -> 3105
A37: G | B37: 6 | C37: FORNECIMENTOS - MATERIAL ASFÁLTICO (BDI DIFERENCIADO) | I37: =SUM(I38:I40) -> 451978.02
A38: 20 | B38: 6.1 | C38: AQUISIÇÃO DE EMULSÃO ASFÁLTICA PARA IMPRIMAÇÃO (EAI) - EXCLUSIVE TRANSPORTE | D38: CPU.5 | E38: T | F38: 21 | G38: =VLOOKUP(A38,CPU!$A$1:$N$4716,9,0) -> 2689.76 | H38: =VLOOKUP(A38,CPU!$A$1:$N$4716,10,0) -> 3093.224 | I38: =ROUND(F38*H38,2) -> 64957.7
A39: 21 | B39: 6.2 | C39: AQUISIÇÃO DE EMULSAO ASFALTICA CATIONICA RR-1C - EXCLUSIVE TRANSPORTE | D39: CPU.6 | E39: T | F39: 6.5 | G39: =VLOOKUP(A39,CPU!$A$1:$N$4716,9,0) -> 2706.7 | H39: =VLOOKUP(A39,CPU!$A$1:$N$4716,10,0) -> 3112.705 | I39: =ROUND(F39*H39,2) -> 20232.58
A40: 22 | B40: 6.3 | C40: AQUISIÇÃO DE EMULSAO ASFALTICA CATIONICA RL-1C - EXCLUSIVE TRANSPORTE | D40: CPU.7 | E40: T | F40: 105.998 | G40: =VLOOKUP(A40,CPU!$A$1:$N$4716,9,0) -> 3008.98 | H40: =VLOOKUP(A40,CPU!$A$1:$N$4716,10,0) -> 3460.327 | I40: =ROUND(F40*H40,2) -> 366787.74
B41: TOTAL GERAL DA OBRA COM BDI | I41: =SUM(I9,I15,I24,I27,I34,I37) -> 1651665.18

Sheet CPU
A1: 1 | B1: CODEVASF | E1: COMPOSIÇÃO DE PREÇO UNITÁRIO | I1: =H11 -> 10220.7 | J1: =H13 -> 12737.03634 | K1: BDI CALCULADO: | M1: =ORÇAMENTO!I6 -> 0.2462
B2: OBRA: | C2: =ORÇAMENTO!C5 -> PAVIMENTAÇÃO ASFÁLTICA EM PMF - VIAS DIVERSAS - RIO PARDO DE MINAS -MG | G2: DATA: | H2: =ORÇAMENTO!C6 -> SETEMBRO DE 2023 | K2: BDI DIFERENCIADO: | M2: ='BDI FORN'!D31/100 -> 0.15
B3: SERVIÇO: | C3: =VLOOKUP(A1,ORÇAMENTO!A10:I28,3) -> MOBILIZAÇÃO E DESMOBILIZAÇÃO | E3: Referência: | F3: =VLOOKUP(A1,ORÇAMENTO!A10:I28,4) -> CPU.1 | G3: UNIDADE: | H3: =VLOOKUP(A1,ORÇAMENTO!A10:I28,5) -> GL
B5: TIPO ITEM | C5: CODIGO ITEM | D5: DESCRIÇÃO ITEM | E5: UNIDADE ITEM | F5: COEFICIENTE | G5: PRECO UNITARIO | H5: CUSTO TOTAL
B6: COMPOSICAO | C6: 89876 | D6: CAMINHÃO BASCULANTE 14 M3, COM CAVALO MECÂNICO DE CAPACIDADE MÁXIMA DE TRAÇÃO COMBINADO DE 36000 KG, POTÊNCIA 286 CV, INCLUSIVE SEMIREBOQUE COM CAÇAMBA METÁLICA | E6: CHP DIURNO. | F6: 16 | G6: 316.13 | H6: =ROUNDDOWN(F6*G6,2) -> 5058.08
B7: COMPOSICAO | C7: 89877 | D7: CAMINHÃO BASCULANTE 14 M3, COM CAVALO MECÂNICO DE CAPACIDADE MÁXIMA DE TRAÇÃO COMBINADO DE 36000 KG, POTÊNCIA 286 CV, INCLUSIVE SEMIREBOQUE COM CAÇAMBA METÁLICA | E7: CHI DIURNO. | F7: 16 | G7: 89.75 | H7: =ROUNDDOWN(F7*G7,2) -> 1436
B8: COMPOSICAO | C8: 5914640 | D8: TRANSPORTE COM CAVALO MECÂNICO COM SEMIRREBOQUE COM CAPACIDADE DE 30 T - RODOVIA PAVIMENTADA | E8: T.KM | F8: 5335 | G8: 0.58 | H8: =ROUNDDOWN(F8*G8,2) -> 3094.3
B9: COMPOSIÇÃO | C9: 88316 | D9: SERVENTE COM ENCARGOS COMPLEMENTARES | E9: H | F9: 32 | G9: 19.76 | H9: =ROUNDDOWN(F9*G9,2) -> 632.32
B10: PRODUÇÃO DA EQUIPE | E10: 1 | F10: CUSTO | H10: =SUM(H6:H9) -> 10220.7
B11: TOTAL | H11: =H10/E10 -> 10220.7
B12: BDI % | H12: =1+$M$1 -> 1.2462
B13: TOTAL DO SERVIÇO - R$ | H13: =H11*H12 -> 12737.03634
A15: =A1+1 -> 2 | B15: CODEVASF | E15: COMPOSIÇÃO DE PREÇO UNITÁRIO | I15: =H30 -> 65613.15 | J15: =H32 -> 81767.10753
B16: OBRA: | C16: =$C$2 -> PAVIMENTAÇÃO ASFÁLTICA EM PMF - VIAS DIVERSAS - RIO PARDO DE MINAS -MG | G16: DATA: | H16: =$H$2 -> SETEMBRO DE 2023
B17: SERVIÇO: | C17: =VLOOKUP(A15,ORÇAMENTO!$A$10:$I$28,3) -> ADMINISTRAÇÃO LOCAL | E17: SINAPI | F17: CPU | G17: UNIDADE: | H17: =VLOOKUP(A15,ORÇAMENTO!$A$10:$I$28,5) -> GL
B19: TIPO ITEM | C19: CODIGO ITEM | D19: DESCRIÇÃO ITEM | E19: UNIDADE ITEM | F19: COEFICIENTE | G19: PRECO UNITARIO | H19: CUSTO TOTAL
B20: INSUMO | C20: 14250 | D20: ENERGIA ELÉTRICA | E20: kwh | F20: 60 | G20: 0.94 | H20: =ROUNDDOWN(F20*G20,2) -> 56.4
B21: INSUMO | C21: 44480 | D21: TARIFA "A" - ÁGUA/ESGOTO | E21: m³ | F21: 6 | G21: 17.78 | H21: 106.68
B22: COTAÇÃO | C22: MERC. | D22: TELEFONE (PLANO CONTROLE) | E22: UNID | F22: 2 | G22: 59.9 | H22: 119.8
B23: INSUMO | C23: ED-50155 SEINFRA | D23: BANHEIRO QUÍMICO 110 X 120 X 230 CM COM MANUTENÇÃO (CONSIDERANDO OBRAS SIMULTÂNEAS) | E23: MÊS | F23: 2 | G23: 820 | H23: 1640
B24: COMPOSICAO | C24: 90777 | D24: Engenheiro Civil Júnior com encargos complementares | E24: H | F24: 30 | G24: 114.12 | H24: 3423.6
B25: COMPOSICAO | C25: 90776 | D25: Encarregado Geral com encargos complementares | E25: H | F25: 75 | G25: 57.73 | H25: 4329.75
B26: COMPOSICAO | C26: 88321 | D26: Tecnico de Laboratório com encargos complementares | E26: H | F26: 30 | G26: 45.45 | H26: 1363.5
B27: COMPOSICAO | C27: 100309 | D27: Tecnico em Segurança do Trabalho com encargos complementares | E27: H | F27: 30 | G27: 45.71 | H27: 1371.3
B28: COMPOSICAO | C28: 90772 | D28: Auxiliar de escritório com encargos complementares | E28: H | F28: 30 | G28: 23.72 | H28: 711.6
B29: PRODUÇÃO DA EQUIPE | E29: =1/5 -> 0.2 | F29: CUSTO | H29: =SUM(H20:H28) -> 13122.63
B30: TOTAL | H30: =H29/E29 -> 65613.15
B31: BDI % | H31: =1+$M$1 -> 1.2462
B32: TOTAL DO SERVIÇO - R$ | H32: =H30*H31 -> 81767.10753
A34: =A15+1 -> 3 | B34: CODEVASF | E34: COMPOSIÇÃO DE PREÇO UNITÁRIO | I34: =H44 -> 11337.75 | J34: =H46 -> 14129.10405
B35: OBRA: | C35: =$C$2 -> PAVIMENTAÇÃO ASFÁLTICA EM PMF - VIAS DIVERSAS - RIO PARDO DE MINAS -MG | G35: DATA: | H35: =$H$2 -> SETEMBRO DE 2023
B36: SERVIÇO: | C36: =VLOOKUP(A34,ORÇAMENTO!$A$10:$I$28,3) -> CANTEIRO DE OBRAS | E36: SINAPI | F36: =VLOOKUP(A34,ORÇAMENTO!$A$10:$I$28,4) -> CPU.3 | G36: UNIDADE: | H36: =VLOOKUP(A34,ORÇAMENTO!$A$10:$I$28,5) -> GL
B38: TIPO ITEM | C38: CODIGO ITEM | D38: DESCRIÇÃO ITEM | E38: UNIDADE ITEM | F38: COEFICIENTE | G38: PRECO UNITARIO | H38: CUSTO TOTAL
B39: INSUMO | C39: 10775 | D39: ALUGUEL DE IMÓVEL OU CONTEINER QUE ATENDA AOS REQUISITOS MÍNIMOS PARA INSTALAÇÃO DO CANTEIRO DE OBRAS | E39: MÊS | F39: 5 | G39: 975 | H39: =ROUNDDOWN(F39*G39,2) -> 4875
B40: INSUMO | C40: 10779 | D40: LOCACAO DE CONTAINER 2,30 X 4,30 M, ALT. 2,50 M, P/ SANITARIO, C/ 5 BACIAS, 1 LAVATORIO E 4 MICTORIOS | E40: MÊS | F40: 5 | G40: 1218.75 | H40: =ROUNDDOWN(F40*G40,2) -> 6093.75
B41: INSUMO | C41: 37525 | D41: TELA PLASTICA TECIDA LISTRADA BRANCA E LARANJA, TIPO GUARDA CORPO, EM POLIETILENO MONOFILADO, ROLO 1,20 X 50 M (L X C) | E41: M | F41: 100 | G41: 3.69 | H41: =ROUNDDOWN(F41*G41,2) -> 369
H42: =ROUNDDOWN(F42*G42,2) -> 0
B43: PRODUÇÃO DA EQUIPE | E43: 1 | F43: CUSTO | H43: =SUM(H39:H42) -> 11337.75
B44: TOTAL | H44: =H43/E43 -> 11337.75
B45: BDI % | H45: =1+$M$1 -> 1.2462
B46: TOTAL DO SERVIÇO - R$ | H46: =H44*H45 -> 14129.10405
A48: =A34+1 -> 4 | B48: CODEVASF | E48: COMPOSIÇÃO DE PREÇO UNITÁRIO | I48: =H61 -> 340.5 | J48: =H63 -> 424.3311
B49: OBRA: | C49: =$C$2 -> PAVIMENTAÇÃO ASFÁLTICA EM PMF - VIAS DIVERSAS - RIO PARDO DE MINAS -MG | G49: DATA: | H49: =$H$2 -> SETEMBRO DE 2023
B50: SERVIÇO: | C50: =VLOOKUP(A48,ORÇAMENTO!$A$10:$I$28,3) -> PLACA DE OBRA EM CHAPA DE AÇO GALVANIZADO | E50: SINAPI | F50: =VLOOKUP(A48,ORÇAMENTO!$A$10:$I$28,4) -> 74209/001 | G50: UNIDADE: | H50: =VLOOKUP(A48,ORÇAMENTO!$A$10:$I$28,5) -> M2
B52: TIPO ITEM | C52: CODIGO ITEM | D52: DESCRIÇÃO ITEM | E52: UNIDADE ITEM | F52: COEFICIENTE | G52: PRECO UNITARIO | H52: CUSTO TOTAL
B53: INSUMO | C53: 4509 | D53: SARRAFO *2,5 X 10* CM EM PINUS, MISTA OU EQUIVALENTE DA REGIAO - BRUTA | E53: M | F53: 3,2083000 | G53: 4,41 | H53: =ROUNDDOWN(F53*G53,2) -> 14.14
B54: INSUMO | C54: 4813 | D54: PLACA DE OBRA (PARA CONSTRUCAO CIVIL) EM CHAPA GALVANIZADA *N. 22*, ADESIVADA, DE *2,4 X 1,2* M (SEM POSTES PARA FIXACAO) | E54: M2 | F54: 1,0000000 | G54: 250,00 | H54: 250
B55: INSUMO | C55: 5065 | D55: PREGO DE ACO POLIDO COM CABECA 10 X 10 (7/8 X 17) | E55: KG | F55: 0,0113000 | G55: 36,57 | H55: 0.41
B56: INSUMO | C56: 5069 | D56: PREGO DE ACO POLIDO COM CABECA 17 X 27 (2 1/2 X 11) | E56: KG | F56: 0,0132000 | G56: 19,59 | H56: 0.25
B57: COMPOSICAO | C57: 88262 | D57: CARPINTEIRO DE FORMAS COM ENCARGOS COMPLEMENTARES | E57: H | F57: 0,3729000 | G57: 27,05 | H57: 10.08
B58: COMPOSICAO | C58: 88316 | D58: SERVENTE COM ENCARGOS COMPLEMENTARES | E58: H | F58: 1,1186000 | G58: 19,76 | H58: 22.1
B59: INSUMO | C59: 4115 | D59: MADEIRA ROLICA TRATADA, D = 12 A 15 CM, H = 3,00 M, EM EUCALIPTO OU EQUIVALENTE | E59: M | F59: 2 | G59: 21.76 | H59: 43.52
B60: PRODUÇÃO DA EQUIPE | E60: 1 | F60: CUSTO | H60: =SUM(H53:H59) -> 340.5
B61: TOTAL | H61: =H60/E60 -> 340.5
B62: BDI % | H62: =1+$M$1 -> 1.2462
B63: TOTAL DO SERVIÇO - R$ | H63: =H61*H62 -> 424.3311
A65: =A48+1 -> 5 | B65: CODEVASF | E65: COMPOSIÇÃO DE PREÇO UNITÁRIO | I65: =H77 -> 0.33 | J65: =H79 -> 0.411246
B66: OBRA: | C66: =$C$2 -> PAVIMENTAÇÃO ASFÁLTICA EM PMF - VIAS DIVERSAS - RIO PARDO DE MINAS -MG | G66: DATA: | H66: =$H$2 -> SETEMBRO DE 2023
B67: SERVIÇO: | C67: =VLOOKUP(A65,ORÇAMENTO!$A$10:$I$28,3) -> SERVIÇOS TOPOGRÁFICOS PARA PAVIMENTAÇÃO, INCLUSIVE NOTA DE SERVIÇO, ACOMPANHAMENTO E GREIDE | E67: SINAPI | F67: =VLOOKUP(A65,ORÇAMENTO!$A$10:$I$28,4) -> 99064 | G67: UNIDADE: | H67: =VLOOKUP(A65,ORÇAMENTO!$A$10:$I$28,5) -> M2
B69: TIPO ITEM | C69: CODIGO ITEM | D69: DESCRIÇÃO ITEM | E69: UNIDADE ITEM | F69: COEFICIENTE | G69: PRECO UNITARIO | H69: CUSTO TOTAL
B70: COMPOSICAO | C70: 88253 | D70: AUXILIAR DE TOPÓGRAFO COM ENCARGOS COMPLEMENTARES | E70: H | F70: 0.0025 | G70: 21.57 | H70: =ROUNDDOWN(F70*G70,2) -> 0.05
B71: COMPOSICAO | C71: 88288 | D71: NIVELADOR COM ENCARGOS COMPLEMENTARES | E71: H | F71: 0.0025 | G71: 26.99 | H71: 0.06
B72: COMPOSICAO | C72: 88316 | D72: SERVENTE COM ENCARGOS COMPLEMENTARES | E72: H | F72: 0.0075 | G72: 19.76 | H72: 0.14
B73: COMPOSICAO | C73: 88597 | D73: DESENHISTA DETALHISTA COM ENCARGOS COMPLEMENTARES | E73: H | F73: 0.002 | G73: 29.72 | H73: 0.05
B74: COMPOSICAO | C74: 92145 | D74: CAMINHONETE CABINE SIMPLES COM MOTOR 1.6 FLEX, CÂMBIO MANUAL, POTÊNCIA 101/104 CV, 2 PORTAS | E74: CHP | F74: 0.0005 | G74: 74.75 | H74: 0.03
H75: -
B76: PRODUÇÃO DA EQUIPE | E76: 1 | F76: CUSTO | H76: =SUM(H70:H75) -> 0.33
B77: TOTAL | H77: =H76/E76 -> 0.33
B78: BDI % | H78: =1+$M$1 -> 1.2462
B79: TOTAL DO SERVIÇO - R$ | H79: =H77*H78 -> 0.411246
A81: =A65+1 -> 6 | B81: CODEVASF | E81: COMPOSIÇÃO DE PREÇO UNITÁRIO | I81: =H90 -> 2.2 | J81: =H92 -> 2.74164
B82: OBRA: | C82: =$C$2 -> PAVIMENTAÇÃO ASFÁLTICA EM PMF - VIAS DIVERSAS - RIO PARDO DE MINAS -MG | G82: DATA: | H82: =$H$2 -> SETEMBRO DE 2023
B83: SERVIÇO: | C83: =VLOOKUP(A81,ORÇAMENTO!$A$10:$I$28,3) -> ESCAVAÇÃO HORIZONTAL EM SOLO DE 1A CATEGORIA | E83: SINAPI | F83: =VLOOKUP(A81,ORÇAMENTO!$A$10:$I$28,4) -> 101116 | G83: UNIDADE: | H83: =VLOOKUP(A81,ORÇAMENTO!$A$10:$I$28,5) -> M3
B85: TIPO ITEM | C85: CODIGO ITEM | D85: DESCRIÇÃO ITEM | E85: UNIDADE ITEM | F85: COEFICIENTE | G85: PRECO UNITARIO | H85: CUSTO TOTAL
B86: COMPOSICAO | C86: 5847 | D86: TRATOR DE ESTEIRAS, POTÊNCIA 170 HP, PESO OPERACIONAL 19 T, CAÇAMBA 5,2 M3 | E86: CHP | F86: 0,0048000 | G86: 253,93 | H86: =ROUNDDOWN(F86*G86,2) -> 1.21
B87: COMPOSICAO | C87: 5849 | D87: TRATOR DE ESTEIRAS, POTÊNCIA 170 HP, PESO OPERACIONAL 19 T, CAÇAMBA 5,2 M3 | E87: CHI | F87: 0,0082000 | G87: 90,40 | H87: 0.74
B88: COMPOSICAO | C88: 88316 | D88: SERVENTE COM ENCARGOS COMPLEMENTARES | E88: H | F88: 0,0131000 | G88: 19,76 | H88: 0.25
B89: PRODUÇÃO DA EQUIPE | E89: 1 | F89: CUSTO | H89: =SUM(H86:H88) -> 2.2
B90: TOTAL | H90: =H89/E89 -> 2.2
B91: BDI % | H91: =1+$M$1 -> 1.2462
B92: TOTAL DO SERVIÇO - R$ | H92: =H90*H91 -> 2.74164
A94: 7 | B94: CODEVASF | E94: COMPOSIÇÃO DE PREÇO UNITÁRIO | I94: =H104 -> 5.22 | J94: =H106 -> 6.505164
B95: OBRA: | C95: =$C$2 -> PAVIMENTAÇÃO ASFÁLTICA EM PMF - VIAS DIVERSAS - RIO PARDO DE MINAS -MG | G95: DATA: | H95: =$H$2 -> SETEMBRO DE 2023
B96: SERVIÇO: | C96: =VLOOKUP(A94,ORÇAMENTO!$A$10:$I$28,3) -> CARGA, MANOBRA E DESCARGA DE SOLOS E MATERIAIS GRANULARES EM CAMINHÃO BASCULANTE - DESCARGA LIVRE | E96: SINAPI | F96: =VLOOKUP(A94,ORÇAMENTO!$A$10:$I$28,4) -> 100976 | G96: UNIDADE: | H96: =VLOOKUP(A94,ORÇAMENTO!$A$10:$I$28,5) -> M3
B98: TIPO ITEM | C98: CODIGO ITEM | D98: DESCRIÇÃO ITEM | E98: UNIDADE ITEM | F98: COEFICIENTE | G98: PRECO UNITARIO | H98: CUSTO TOTAL
B99: COMPOSICAO | C99: 5940 | D99: PÁ CARREGADEIRA SOBRE RODAS, POTÊNCIA LÍQUIDA 128 HP, CAPACIDADE DA CAÇAMBA 1,7 A 2,8 M3, PESO OPERACIONAL 11632 KG | E99: CHP | F99: 0,0083000 | G99: 217,72 | H99: =ROUNDDOWN(F99*G99,2) -> 1.8
B100: COMPOSICAO | C100: 5942 | D100: PÁ CARREGADEIRA SOBRE RODAS, POTÊNCIA LÍQUIDA 128 HP, CAPACIDADE DA CAÇAMBA 1,7 A 2,8 M3, PESO OPERACIONAL 11632 KG | E100: CHI | F100: 0,0074000 | G100: 95,85 | H100: 0.7
B101: COMPOSICAO | C101: 89883 | D101: CAMINHÃO BASCULANTE 18 M3, COM CAVALO MECÂNICO DE CAPACIDADE MÁXIMA DE TRAÇÃO COMBINADO DE 45000 KG, POTÊNCIA 330 CV, INCLUSIVE SEMIREBOQUE COM CAÇAMBA METÁLICA | E101: CHP | F101: 0.0053 | G101: 348,45 | H101: 1.84
B102: COMPOSICAO | C102: 89884 | D102: CAMINHÃO BASCULANTE 18 M3, COM CAVALO MECÂNICO DE CAPACIDADE MÁXIMA DE TRAÇÃO COMBINADO DE 45000 KG, POTÊNCIA 330 CV, INCLUSIVE SEMIREBOQUE COM CAÇAMBA METÁLICA | E102: CHI | F102: 0,0095000 | G102: 93,65 | H102: 0.88
B103: PRODUÇÃO DA EQUIPE | E103: 1 | F103: CUSTO | H103: =SUM(H99:H102) -> 5.22
B104: TOTAL | H104: =H103/E103 -> 5.22
B105: BDI % | H105: =1+$M$1 -> 1.2462
B106: TOTAL DO SERVIÇO - R$ | H106: =H104*H105 -> 6.505164
A108: 8 | B108: CODEVASF | E108: COMPOSIÇÃO DE PREÇO UNITÁRIO | I108: =H122 -> 2.57 | J108: =H124 -> 3.202734
B109: OBRA: | C109: =$C$2 -> PAVIMENTAÇÃO ASFÁLTICA EM PMF - VIAS DIVERSAS - RIO PARDO DE MINAS -MG | G109: DATA: | H109: =$H$2 -> SETEMBRO DE 2023
B110: SERVIÇO: | C110: =VLOOKUP(A108,ORÇAMENTO!$A$10:$I$28,3) -> REGULARIZAÇÃO E COMPACTAÇÃO DE SUBLEITO | E110: SICRO | F110: =VLOOKUP(A108,ORÇAMENTO!$A$10:$I$28,4) -> 100576 | G110: UNIDADE: | H110: =VLOOKUP(A108,ORÇAMENTO!$A$10:$I$28,5) -> M2
B112: TIPO ITEM | C112: CODIGO ITEM | D112: DESCRIÇÃO ITEM | E112: UNIDADE ITEM | F112: COEFICIENTE | G112: PRECO UNITARIO | H112: CUSTO TOTAL
B113: COMPOSICAO | C113: 5901 | D113: CAMINHÃO PIPA 10.000 L TRUCADO, PESO BRUTO TOTAL 23.000 KG, CARGA ÚTIL MÁXIMA 15.935 KG, DISTÂNCIA ENTRE EIXOS 4,8 M, POTÊNCIA 230 CV, INCLUSIVE TANQUE DE AÇO PARA TRANSPORTE DE ÁGUA | E113: CHP | F113: 0,0010000 | G113: 294,94 | H113: =ROUNDDOWN(F113*G113,2) -> 0.29
B114: COMPOSICAO | C114: 5903 | D114: CAMINHÃO PIPA 10.000 L TRUCADO, PESO BRUTO TOTAL 23.000 KG, CARGA ÚTIL MÁXIMA 15.935 KG, DISTÂNCIA ENTRE EIXOS 4,8 M, POTÊNCIA 230 CV, INCLUSIVE TANQUE DE AÇO PARA TRANSPORTE DE ÁGUA | E114: CHI | F114: 0,0070000 | G114: 72,55 | H114: 0.5
B115: COMPOSICAO | C115: 5932 | D115: MOTONIVELADORA POTÊNCIA BÁSICA LÍQUIDA (PRIMEIRA MARCHA) 125 HP, PESO BRUTO 13032 KG, LARGURA DA LÂMINA DE 3,7 M | E115: CHP | F115: 0,0001000 | G115: 262,71 | H115: 0.02
B116: COMPOSICAO | C116: 5934 | D116: MOTONIVELADORA POTÊNCIA BÁSICA LÍQUIDA (PRIMEIRA MARCHA) 125 HP, PESO BRUTO 13032 KG, LARGURA DA LÂMINA DE 3,7 M | E116: CHI | F116: 0,0080000 | G116: 109,40 | H116: 0.87
B117: COMPOSICAO | C117: 73436 | D117: ROLO COMPACTADOR VIBRATÓRIO PÉ DE CARNEIRO PARA SOLOS, POTÊNCIA 80 HP, PESO OPERACIONAL SEM/COM LASTRO 7,4 / 8,8 T, LARGURA DE TRABALHO 1,68 M | E117: CHP | F117: 0,0020000 | G117: 163,19 | H117: 0.32
B118: COMPOSICAO | C118: 88316 | D118: SERVENTE COM ENCARGOS COMPLEMENTARES | E118: H | F118: 0,0080000 | G118: 19,76 | H118: 0.15
B119: COMPOSICAO | C119: 93244 | D119: ROLO COMPACTADOR VIBRATÓRIO PÉ DE CARNEIRO PARA SOLOS, POTÊNCIA 80 HP, PESO OPERACIONAL SEM/COM LASTRO 7,4 / 8,8 T, LARGURA DE TRABALHO 1,68 M | E119: CHI | F119: 0,0060000 | G119: 71,18 | H119: 0.42
H120: =ROUNDDOWN(F120*G120,2) -> 0
B121: PRODUÇÃO DA EQUIPE | E121: 1 | F121: CUSTO | H121: =SUM(H113:H120) -> 2.57
B122: TOTAL | H122: =H121/E121 -> 2.57
B123: BDI % | H123: =1+$M$1 -> 1.2462
B124: TOTAL DO SERVIÇO - R$ | H124: =H122*H123 -> 3.202734
A126: 9 | B126: CODEVASF | E126: COMPOSIÇÃO DE PREÇO UNITÁRIO | I126: =H142 -> 12.47 | J126: =H144 -> 15.540114
B127: OBRA: | C127: =$C$2 -> PAVIMENTAÇÃO ASFÁLTICA EM PMF - VIAS DIVERSAS - RIO PARDO DE MINAS -MG | G127: DATA: | H127: =$H$2 -> SETEMBRO DE 2023
B128: SERVIÇO: | C128: =VLOOKUP(A126,ORÇAMENTO!$A$10:$I$28,3) -> EXECUÇÃO E COMPACTAÇÃO DE BASE E OU SUB BASE PARA PAVIMENTAÇÃO DE SOLOS DE COMPORTAMENTO LATERÍTICO - EXCLUSIVE SOLO, ESCAVAÇÃO, CARGA E TRANSPORTE | E128: SINAPI | F128: =VLOOKUP(A126,ORÇAMENTO!$A$10:$I$28,4) -> 96388 | G128: UNIDADE: | H128: =VLOOKUP(A126,ORÇAMENTO!$A$10:$I$28,5) -> M3
B130: TIPO ITEM | C130: CODIGO ITEM | D130: DESCRIÇÃO ITEM | E130: UNIDADE ITEM | F130: COEFICIENTE | G130: PRECO UNITARIO | H130: CUSTO TOTAL
B131: COMPOSICAO | C131: 5684 | D131: ROLO COMPACTADOR VIBRATÓRIO DE UM CILINDRO AÇO LISO, POTÊNCIA 80 HP, PESO OPERACIONAL MÁXIMO 8,1 T, IMPACTO DINÂMICO 16,15 / 9,5 T, LARGURA DE TRABALHO 1,68 M | E131: CHP | F131: 0,0030000 | G131: 159,98 | H131: =ROUNDDOWN(F131*G131,2) -> 0.47
B132: COMPOSICAO | C132: 5685 | D132: ROLO COMPACTADOR VIBRATÓRIO DE UM CILINDRO AÇO LISO, POTÊNCIA 80 HP, PESO OPERACIONAL MÁXIMO 8,1 T, IMPACTO DINÂMICO 16,15 / 9,5 T, LARGURA DE TRABALHO 1,68 M | E132: CHI | F132: 0,0230000 | G132: 69,53 | H132: 1.59
B133: COMPOSICAO | C133: 5901 | D133: CAMINHÃO PIPA 10.000 L TRUCADO, PESO BRUTO TOTAL 23.000 KG, CARGA ÚTIL MÁXIMA 15.935 KG, DISTÂNCIA ENTRE EIXOS 4,8 M, POTÊNCIA 230 CV, INCLUSIVE TANQUE DE AÇO PARA TRANSPORTE DE ÁGUA | E133: CHP | F133: 0,0040000 | G133: 294,94 | H133: 1.17
B134: COMPOSICAO | C134: 5903 | D134: CAMINHÃO PIPA 10.000 L TRUCADO, PESO BRUTO TOTAL 23.000 KG, CARGA ÚTIL MÁXIMA 15.935 KG, DISTÂNCIA ENTRE EIXOS 4,8 M, POTÊNCIA 230 CV, INCLUSIVE TANQUE DE AÇO PARA TRANSPORTE DE ÁGUA | E134: CHI | F134: 0,0220000 | G134: 72,55 | H134: 1.59
B135: COMPOSICAO | C135: 5932 | D135: MOTONIVELADORA POTÊNCIA BÁSICA LÍQUIDA (PRIMEIRA MARCHA) 125 HP, PESO BRUTO 13032 KG, LARGURA DA LÂMINA DE 3,7 M | E135: CHP | F135: 0,0080000 | G135: 262,71 | H135: 2.1
B136: COMPOSICAO | C136: 5934 | D136: MOTONIVELADORA POTÊNCIA BÁSICA LÍQUIDA (PRIMEIRA MARCHA) 125 HP, PESO BRUTO 13032 KG, LARGURA DA LÂMINA DE 3,7 M | E136: CHI | F136: 0,0190000 | G136: 109,40 | H136: 2.07
B137: COMPOSICAO | C137: 88316 | D137: SERVENTE COM ENCARGOS COMPLEMENTARES | E137: H | F137: 0,0260000 | G137: 19,76 | H137: 0.51
B138: COMPOSICAO | C138: 96463 | D138: ROLO COMPACTADOR DE PNEUS, ESTATICO, PRESSAO VARIAVEL, POTENCIA 110 HP, PESO SEM/COM LASTRO 10,8/27 T, LARGURA DE ROLAGEM 2,30 M | E138: CHP | F138: 0,0040000 | G138: 218,21 | H138: 0.87
B139: COMPOSICAO | C139: 96464 | D139: ROLO COMPACTADOR DE PNEUS, ESTATICO, PRESSAO VARIAVEL, POTENCIA 110 HP, PESO SEM/COM LASTRO 10,8/27 T, LARGURA DE ROLAGEM 2,30 M | E139: CHI | F139: 0,0220000 | G139: 95,83 | H139: 2.1
H140: 0
B141: PRODUÇÃO DA EQUIPE | E141: 1 | F141: CUSTO | H141: =SUM(H131:H140) -> 12.47
B142: TOTAL | H142: =H141/E141 -> 12.47
B143: BDI % | H143: =1+$M$1 -> 1.2462
B144: TOTAL DO SERVIÇO - R$ | H144: =H142*H143 -> 15.540114
A146: 10 | B146: CODEVASF | E146: COMPOSIÇÃO DE PREÇO UNITÁRIO | I146: =H161 -> 1.23 | J146: =H163 -> 1.532826
B147: OBRA: | C147: =$C$2 -> PAVIMENTAÇÃO ASFÁLTICA EM PMF - VIAS DIVERSAS - RIO PARDO DE MINAS -MG | G147: DATA: | H147: =$H$2 -> SETEMBRO DE 2023
B148: SERVIÇO: | C148: =VLOOKUP(A146,ORÇAMENTO!$A$10:$I$28,3) -> IMPRIMAÇÃO COM EMULSÃO ASFÁLTICA DE IMPRIMAÇÃO (EAI) | E148: SINAPI | F148: =VLOOKUP(A146,ORÇAMENTO!$A$10:$I$28,4) -> 96401 | G148: UNIDADE: | H148: =VLOOKUP(A146,ORÇAMENTO!$A$10:$I$28,5) -> M2
B150: TIPO ITEM | C150: CODIGO ITEM | D150: DESCRIÇÃO ITEM | E150: UNIDADE ITEM | F150: COEFICIENTE | G150: PRECO UNITARIO | H150: CUSTO TOTAL
B151: COMPOSICAO | C151: 5839 | D151: VASSOURA MECÂNICA REBOCÁVEL COM ESCOVA CILÍNDRICA, LARGURA ÚTIL DE VARRIMENTO DE 2,44 M | E151: CHP | F151: 0,0020000 | G151: 10.3 | H151: =ROUNDDOWN(F151*G151,2) -> 0.02
B152: COMPOSICAO | C152: 5841 | D152: VASSOURA MECÂNICA REBOCÁVEL COM ESCOVA CILÍNDRICA, LARGURA ÚTIL DE VARRIMENTO DE 2,44 M | E152: CHI | F152: 0,0040000 | G152: 5.18 | H152: 0.02
B153: INSUMO | C153: ANP | D153: EMULSÃO ASFÁLTICA PARA IMPRIMAÇÃO - EAI (FORNECIMENTO COM BDI DIFERENCIADO) | E153: T | F153: =1.3/1000 -> 0.0013 | H153: 0
B154: COMPOSICAO | C154: 83362 | D154: ESPARGIDOR DE ASFALTO PRESSURIZADO, TANQUE 6 M3 COM ISOLAÇÃO TÉRMICA, AQUECIDO COM 2 MAÇARICOS, COM BARRA ESPARGIDORA 3,60 M, MONTADO SOBRE CAMINHÃO TOCO, PBT 14.300 KG, POTÊNCIA 185 CV | E154: CHP | F154: 0,0010000 | G154: 256.34 | H154: 0.25
B155: COMPOSICAO | C155: 88316 | D155: SERVENTE COM ENCARGOS COMPLEMENTARES | E155: H | F155: 0,0060000 | G155: 19.76 | H155: 0.11
B156: COMPOSICAO | C156: 89035 | D156: TRATOR DE PNEUS, POTÊNCIA 85 CV, TRAÇÃO 4X4, PESO COM LASTRO DE 4.675 KG | E156: CHP | F156: 0,0020000 | G156: 135.08 | H156: 0.27
B157: COMPOSICAO | C157: 89036 | D157: TRATOR DE PNEUS, POTÊNCIA 85 CV, TRAÇÃO 4X4, PESO COM LASTRO DE 4.675 KG | E157: CHI | F157: 0,0040000 | G157: 56.48 | H157: 0.22
B158: COMPOSICAO | C158: 91486 | D158: ESPARGIDOR DE ASFALTO PRESSURIZADO, TANQUE 6 M3 COM ISOLAÇÃO TÉRMICA, AQUECIDO COM 2 MAÇARICOS, COM BARRA ESPARGIDORA 3,60 M, MONTADO SOBRE CAMINHÃO TOCO, PBT 14.300 KG, POTÊNCIA 185 CV | E158: CHI | F158: 0,0050000 | G158: 68.43 | H158: 0.34
H159: =ROUNDDOWN(F159*G159,2) -> 0
B160: PRODUÇÃO DA EQUIPE | E160: 1 | F160: CUSTO | H160: =SUM(H151:H159) -> 1.23
B161: TOTAL | H161: =H160/E160 -> 1.23
B162: BDI % | H162: =1+$M$1 -> 1.2462
B163: TOTAL DO SERVIÇO - R$ | H163: =H161*H162 -> 1.532826
A165: 11 | B165: CODEVASF | E165: COMPOSIÇÃO DE PREÇO UNITÁRIO | I165: =H180 -> 1.01 | J165: =H182 -> 1.258662
B166: OBRA: | C166: =$C$2 -> PAVIMENTAÇÃO ASFÁLTICA EM PMF - VIAS DIVERSAS - RIO PARDO DE MINAS -MG | G166: DATA: | H166: =$H$2 -> SETEMBRO DE 2023
B167: SERVIÇO: | C167: =VLOOKUP(A165,ORÇAMENTO!$A$10:$I$28,3) -> PINTURA DE LIGAÇÃO COM EMULSÃO ASFÁLTICA RR-1C | E167: SINAPI | F167: =VLOOKUP(A165,ORÇAMENTO!$A$10:$I$28,4) -> 96402 | G167: UNIDADE: | H167: =VLOOKUP(A165,ORÇAMENTO!$A$10:$I$28,5) -> M2
B169: TIPO ITEM | C169: CODIGO ITEM | D169: DESCRIÇÃO ITEM | E169: UNIDADE ITEM | F169: COEFICIENTE | G169: PRECO UNITARIO | H169: CUSTO TOTAL
B170: COMPOSICAO | C170: 5839 | D170: VASSOURA MECÂNICA REBOCÁVEL COM ESCOVA CILÍNDRICA, LARGURA ÚTIL DE VARRIMENTO DE 2,44 M | E170: CHP | F170: 0,0020000 | G170: 10.3 | H170: =ROUNDDOWN(F170*G170,2) -> 0.02
B171: COMPOSICAO | C171: 5841 | D171: VASSOURA MECÂNICA REBOCÁVEL COM ESCOVA CILÍNDRICA, LARGURA ÚTIL DE VARRIMENTO DE 2,44 M | E171: CHI | F171: 0,0040000 | G171: 5.18 | H171: 0.02
B172: INSUMO | C172: 41903 | D172: EMULSAO ASFALTICA CATIONICA RR-1C PARA USO EM PAVIMENTACAO ASFALTICA (FORNECIMENTO COM BDI DIFERENCIADO) | E172: KG | F172: 0,4500000 | H172: 0
B173: COMPOSICAO | C173: 83362 | D173: ESPARGIDOR DE ASFALTO PRESSURIZADO, TANQUE 6 M3 COM ISOLAÇÃO TÉRMICA, AQUECIDO COM 2 MAÇARICOS, COM BARRA ESPARGIDORA 3,60 M, MONTADO SOBRE CAMINHÃO TOCO, PBT 14.300 KG, POTÊNCIA 185 CV | E173: CHP | F173: 0,0004000 | G173: 256.34 | H173: 0.1
B174: COMPOSICAO | C174: 88316 | D174: SERVENTE COM ENCARGOS COMPLEMENTARES | E174: H | F174: 0,0055000 | G174: 19.76 | H174: 0.1
B175: COMPOSICAO | C175: 89035 | D175: TRATOR DE PNEUS, POTÊNCIA 85 CV, TRAÇÃO 4X4, PESO COM LASTRO DE 4.675 KG | E175: CHP | F175: 0,0017000 | G175: 135.08 | H175: 0.22
B176: COMPOSICAO | C176: 89036 | D176: TRATOR DE PNEUS, POTÊNCIA 85 CV, TRAÇÃO 4X4, PESO COM LASTRO DE 4.675 KG | E176: CHI | F176: 0,0038000 | G176: 56.48 | H176: 0.21
B177: COMPOSICAO | C177: 91486 | D177: ESPARGIDOR DE ASFALTO PRESSURIZADO, TANQUE 6 M3 COM ISOLAÇÃO TÉRMICA, AQUECIDO COM 2 MAÇARICOS, COM BARRA ESPARGIDORA 3,60 M, MONTADO SOBRE CAMINHÃO TOCO, PBT 14.300 KG, POTÊNCIA 185 CV | E177: CHI | F177: 0,0051000 | G177: 68.43 | H177: 0.34
H178: =ROUNDDOWN(F178*G178,2) -> 0
B179: PRODUÇÃO DA EQUIPE | E179: 1 | F179: CUSTO | H179: =SUM(H170:H178) -> 1.01
B180: TOTAL | H180: =H179/E179 -> 1.01
B181: BDI % | H181: =1+$M$1 -> 1.2462
B182: TOTAL DO SERVIÇO - R$ | H182: =H180*H181 -> 1.258662
A184: 12 | B184: CODEVASF | E184: COMPOSIÇÃO DE PREÇO UNITÁRIO | I184: =H202 -> 416.59 | J184: =H204 -> 519.154458
B185: OBRA: | C185: =$C$2 -> PAVIMENTAÇÃO ASFÁLTICA EM PMF - VIAS DIVERSAS - RIO PARDO DE MINAS -MG | G185: DATA: | H185: =$H$2 -> SETEMBRO DE 2023
B186: SERVIÇO: | C186: =VLOOKUP(A184,ORÇAMENTO!$A$10:$I$28,3) -> EXECUÇÃO DE PAVIMENTO COM APLICAÇÃO DE PRÉ-MISTURADO A FRIO, CAMADA DE ROLAMENTO - EXCLUSIVE TRANSPORTE | E186: SINAPI | F186: =VLOOKUP(A184,ORÇAMENTO!$A$10:$I$28,4) -> 100624 | G186: UNIDADE: | H186: =VLOOKUP(A184,ORÇAMENTO!$A$10:$I$28,5) -> M3
B188: TIPO ITEM | C188: CODIGO ITEM | D188: DESCRIÇÃO ITEM | E188: UNIDADE ITEM | F188: COEFICIENTE | G188: PRECO UNITARIO | H188: CUSTO TOTAL
B189: COMPOSICAO | C189: 5835 | D189: VIBROACABADORA DE ASFALTO SOBRE ESTEIRAS, LARGURA DE PAVIMENTAÇÃO 1,90 M A 5,30 M, POTÊNCIA 105 HP CAPACIDADE 450 T/H | E189: CHP | F189: 0,0280000 | G189: 396.75 | H189: =ROUNDDOWN(F189*G189,2) -> 11.1
B190: COMPOSICAO | C190: 5837 | D190: VIBROACABADORA DE ASFALTO SOBRE ESTEIRAS, LARGURA DE PAVIMENTAÇÃO 1,90 M A 5,30 M, POTÊNCIA 105 HP CAPACIDADE 450 T/H | E190: CHI | F190: 0,0580000 | G190: 165.12 | H190: 9.57
B191: COMPOSICAO | C191: 88314 | D191: RASTELEIRO COM ENCARGOS COMPLEMENTARES | E191: H | F191: 0,6860000 | G191: 26.52 | H191: 18.19
B192: COMPOSICAO | C192: 91386 | D192: CAMINHÃO BASCULANTE 10 M3, TRUCADO CABINE SIMPLES, PESO BRUTO TOTAL 23.000 KG, CARGA ÚTIL MÁXIMA 15.935 KG, DISTÂNCIA ENTRE EIXOS 4,80 M, POTÊNCIA 230 CV INCLUSIVE CAÇAMBA METÁLICA | E192: CHP | F192: 0,0280000 | G192: 252.13 | H192: 7.05
B193: COMPOSICAO | C193: 95631 | D193: ROLO COMPACTADOR VIBRATORIO TANDEM, ACO LISO, POTENCIA 125 HP, PESO SEM/COM LASTRO 10,20/11,65 T, LARGURA DE TRABALHO 1,73 M | E193: CHP | F193: 0,0460000 | G193: 228.02 | H193: 10.48
B194: COMPOSICAO | C194: 95632 | D194: ROLO COMPACTADOR VIBRATORIO TANDEM, ACO LISO, POTENCIA 125 HP, PESO SEM/COM LASTRO 10,20/11,65 T, LARGURA DE TRABALHO 1,73 M | E194: CHI | F194: 0,0400000 | G194: 89.32 | H194: 3.57
B195: COMPOSICAO | C195: 96155 | D195: TRATOR DE PNEUS COM POTÊNCIA DE 85 CV, TRAÇÃO 4X4, COM VASSOURA MECÂNICA ACOPLADA | E195: CHI | F195: 0,0520000 | G195: 61.42 | H195: 3.19
B196: COMPOSICAO | C196: 96157 | D196: TRATOR DE PNEUS COM POTÊNCIA DE 85 CV, TRAÇÃO 4X4, COM VASSOURA MECÂNICA ACOPLADA | E196: CHP | F196: 0,0340000 | G196: 144.29 | H196: 4.9
B197: COMPOSICAO | C197: 96463 | D197: ROLO COMPACTADOR DE PNEUS, ESTATICO, PRESSAO VARIAVEL, POTENCIA 110 HP, PESO SEM/COM LASTRO 10,8/27 T, LARGURA DE ROLAGEM 2,30 M | E197: CHP | F197: 0,0260000 | G197: 218.21 | H197: 5.67
B198: COMPOSICAO | C198: 96464 | D198: ROLO COMPACTADOR DE PNEUS, ESTATICO, PRESSAO VARIAVEL, POTENCIA 110 HP, PESO SEM/COM LASTRO 10,8/27 T, LARGURA DE ROLAGEM 2,30 M | E198: CHI | F198: 0,0600000 | G198: 95.83 | H198: 5.74
B199: COMPOSICAO | C199: 101027 | D199: USINAGEM DE PRÉ MISTURADO A FRIO, PARA CAMADA DE ROLAMENTO, PADRÃO DNIT FAIXA C | E199: T | F199: 2,4480000 | G199: =H227 -> 137.72 | H199: 337.13
H200: 0
B201: PRODUÇÃO DA EQUIPE | E201: 1 | F201: CUSTO | H201: =SUM(H189:H200) -> 416.59
B202: TOTAL | H202: =H201/E201 -> 416.59
B203: BDI % | H203: =1+$M$1 -> 1.2462
B204: TOTAL DO SERVIÇO - R$ | H204: =H202*H203 -> 519.154458
B206: CODEVASF | E206: COMPOSIÇÃO DE PREÇO UNITÁRIO - AUXILIAR
B207: OBRA: | C207: =$C$2 -> PAVIMENTAÇÃO ASFÁLTICA EM PMF - VIAS DIVERSAS - RIO PARDO DE MINAS -MG | G207: DATA: | H207: =$H$2 -> SETEMBRO DE 2023
B208: SERVIÇO: | C208: =D199 -> USINAGEM DE PRÉ MISTURADO A FRIO, PARA CAMADA DE ROLAMENTO, PADRÃO DNIT FAIXA C | E208: SINAPI | F208: =C199 -> 101027 | G208: UNIDADE: | H208: =E199 -> T
B210: TIPO ITEM | C210: CODIGO ITEM | D210: DESCRIÇÃO ITEM | E210: UNIDADE ITEM | F210: COEFICIENTE | G210: PRECO UNITARIO | H210: CUSTO TOTAL
B211: INSUMO | C211: 370 | D211: AREIA MEDIA - POSTO JAZIDA/FORNECEDOR (RETIRADO NA JAZIDA, SEM TRANSPORTE) | E211: M3 | F211: 0,1600000 | G211: 97.5 | H211: =ROUNDDOWN(F211*G211,2) -> 15.6
B212: INSUMO | C212: 1106 | D212: CAL HIDRATADA CH-I PARA ARGAMASSAS | E212: KG | F212: 36,9275000 | G212: 1.04 | H212: 38.4
B213: INSUMO | C213: 4720 | D213: PEDRA BRITADA N. 0, OU PEDRISCO (4,8 A 9,5 MM) POSTO PEDREIRA/FORNECEDOR, SEM FRETE | E213: M3 | F213: 0,2410000 | G213: 135.82 | H213: 32.73
B214: INSUMO | C214: 4721 | D214: PEDRA BRITADA N. 1 (9,5 a 19 MM) POSTO PEDREIRA/FORNECEDOR, SEM FRETE | E214: M3 | F214: 0,1897000 | G214: 117.64 | H214: 22.31
B215: COMPOSICAO | C215: 5940 | D215: PÁ CARREGADEIRA SOBRE RODAS, POTÊNCIA LÍQUIDA 128 HP, CAPACIDADE DA CAÇAMBA 1,7 A 2,8 M3, PESO OPERACIONAL 11632 KG | E215: CHP | F215: 0,0048000 | G215: 217.72 | H215: 1.04
B216: COMPOSICAO | C216: 5942 | D216: PÁ CARREGADEIRA SOBRE RODAS, POTÊNCIA LÍQUIDA 128 HP, CAPACIDADE DA CAÇAMBA 1,7 A 2,8 M3, PESO OPERACIONAL 11632 KG | E216: CHI | F216: 0,0253000 | G216: 95.85 | H216: 2.42
B217: COMPOSICAO | C217: 7030 | D217: TANQUE DE ASFALTO ESTACIONÁRIO COM SERPENTINA, CAPACIDADE 30.000 L | E217: CHP | F217: 0,0603000 | G217: 240.88 | H217: 14.52
B218: INSUMO | C218: 41904 | D218: EMULSAO ASFALTICA CATIONICA RL-1C PARA USO EM PAVIMENTACAO ASFALTICA (FORNECIMENTO COM BDI DIFERENCIADO) | E218: T | F218: 0,0769000 | H218: 0 | J218: =F218*2.448 -> 0.1882512
B219: COMPOSICAO | C219: 88316 | D219: SERVENTE COM ENCARGOS COMPLEMENTARES | E219: H | F219: 0,0603000 | G219: 19.76 | H219: 1.19
B220: COMPOSICAO | C220: 90776 | D220: ENCARREGADO GERAL COM ENCARGOS COMPLEMENTARES | E220: H | F220: 0,0301000 | G220: 57.73 | H220: 1.73
B221: COMPOSICAO | C221: 93421 | D221: GRUPO GERADOR REBOCÁVEL, POTÊNCIA 66 KVA, MOTOR A DIESEL | E221: CHP | F221: 0,0234000 | G221: 68.29 | H221: 1.59
B222: COMPOSICAO | C222: 93422 | D222: GRUPO GERADOR REBOCÁVEL, POTÊNCIA 66 KVA, MOTOR A DIESEL | E222: CHI | F222: 0,0068000 | G222: 5.01 | H222: 0.03
B223: COMPOSICAO | C223: 93439 | D223: USINA DE ASFALTO À FRIO, CAPACIDADE DE 40 A 60 TON/HORA, ELÉTRICA POTÊNCIA 30 CV | E223: CHP | F223: 0,0234000 | G223: 228.6 | H223: 5.34
B224: COMPOSICAO | C224: 93440 | D224: USINA DE ASFALTO À FRIO, CAPACIDADE DE 40 A 60 TON/HORA, ELÉTRICA POTÊNCIA 30 CV | E224: CHI | F224: 0,0068000 | G224: 120.93 | H224: 0.82
H225: 0
... 162 more rows

Sheet BDI SERV
B1: DETALHAMENTO DO BDI - SERVIÇOS
B4: Item | C4: Descrição dos Serviços | D4: % | E4: %
D5: PV | E5: CD
B7: 1 | C7: ADMINISTRAÇÃO CENTRAL | E7: 4.01
B8: 1.1 | C8: ESCRITÓRIO CENTRAL
B9: 1.2 | C9: VIAGENS
B10: 1.3 | C10: OUTROS
B12: 2 | C12: IMPOSTOS E TAXAS | D12: =SUM(D13:D16) -> 8.65 | E12: =SUM(E13:E16) -> 10.82
B13: 2.1 | C13: ISS (*) | D13: 5 | E13: =ROUND(D13*1.2515,2) -> 6.26
B14: 2.2 | C14: PIS | D14: 0.65 | E14: 0.81
B15: 2.3 | C15: Cofins | D15: 3 | E15: 3.75
B16: 2.4 | C16: CONTRIBUIÇÃO PREVIDENCIÁRIA SOBRE A RENDA BRUTA | D16: 0 | E16: 0
B18: 3 | C18: TAXA DE RISCO | E18: =SUM(E19:E22) -> 0.82
B19: 3.1 | C19: SEGURO | E19: 0.16
B20: 3.2 | C20: RISCO | E20: 0.5
B21: 3.3 | C21: GARANTIA | E21: 0.16
B23: 4 | C23: DESPESAS FINANCEIRAS | E23: 1.02
B25: 5 | C25: LUCRO | E25: 7.5
C27: BDI - CALCULADO | E27: =ROUND((((1+(E7+E18)/100)*(1+E23/100)*(1+E25/100)/(1-D12/100)-1)*100),2) -> 24.62
A29: BDI = ((1+((AC+S+R+G)/100))x(1+DF/100)x(1+L/100)/(1-I/100)-1)*100
B31: BDI (CALCULADO): | D31: =ROUND((((1+((E7+E18)/100))*(1+E23/100)*(1+E25/100))/(1-D12/100)-1)*100,2) -> 24.62 | E31: %
A33: (*) ISS CONFORME LEI COMPLEMENTAR Nº 006/2003 E LEI COMPLEMENTAR Nº 59/2009 QUE ALTEROU A ALÍQUOTA PARA ITENS 7 A 7.05 (ART. 9º ) - QUANT. ESTIMADA DE MATERIAIS = 30%
A37: BDI EM CONFORMIDADE COM OS ACÓRDÃOS Nº 2369/2011 e ACÓRDÃO Nº 2.622/2013 - TCU - PLENÁRIO

Sheet BDI FORN
B1: DETALHAMENTO DO BDI - FORNECIMENTO (MATERIAL ASFÁLTICO)
B4: Item | C4: Descrição dos Serviços | D4: % | E4: %
D5: PV | E5: CD
B7: 1 | C7: ADMINISTRAÇÃO CENTRAL | E7: 3.72
B8: 1.1 | C8: ESCRITÓRIO CENTRAL
B9: 1.2 | C9: VIAGENS
B10: 1.3 | C10: OUTROS
B12: 2 | C12: IMPOSTOS E TAXAS | D12: =SUM(D13:D16) -> 3.65 | E12: =SUM(E13:E16) -> 4.56
B13: 2.1 | C13: ISS (*) | E13: =ROUND(D13*1.2515,2) -> 0
B14: 2.2 | C14: PIS | D14: 0.65 | E14: 0.81
B15: 2.3 | C15: Cofins | D15: 3 | E15: 3.75
B16: 2.4 | C16: CONTRIBUIÇÃO PREVIDENCIÁRIA SOBRE A RENDA BRUTA | D16: 0 | E16: 0
B18: 3 | C18: TAXA DE RISCO | E18: =SUM(E19:E22) -> 0.92
B19: 3.1 | C19: SEGURO | E19: 0.16
B20: 3.2 | C20: RISCO | E20: 0.6
B21: 3.3 | C21: GARANTIA | E21: 0.16
B23: 4 | C23: DESPESAS FINANCEIRAS | E23: 0.85
B25: 5 | C25: LUCRO | E25: 5
C27: BDI - CALCULADO | E27: =ROUND((((1+(E7+E18)/100)*(1+E23/100)*(1+E25/100)/(1-D12/100)-1)*100),2) -> 15
A29: BDI = ((1+((AC+S+R+G)/100))x(1+DF/100)x(1+L/100)/(1-I/100)-1)*100
B31: BDI (CALCULADO): | D31: =ROUND((((1+((E7+E18)/100))*(1+E23/100)*(1+E25/100))/(1-D12/100)-1)*100,2) -> 15 | E31: %
A37: BDI EM CONFORMIDADE COM OS ACÓRDÃOS Nº 2369/2011 e ACÓRDÃO Nº 2.622/2013 - TCU - PLENÁRIO

Sheet CRONOGRAMA
B1: CRONOGRAMA FÍSICO-FINANCEIRO
B2: OBRA: | C2: =ORÇAMENTO!C5 -> PAVIMENTAÇÃO ASFÁLTICA EM PMF - VIAS DIVERSAS - RIO PARDO DE MINAS -MG | F2: VALOR: | G2: =ORÇAMENTO!I41 -> 1651665.18
F3: PRAZO: | G3: 150 DIAS
B5: ITEM | C5: ETAPAS/DESCRIÇAO | D5: FISICO/ FINANCEIRO | E5: TOTAL ETAPAS | F5: MÊS 1 | G5: MÊS 2 | H5: MÊS 3 | I5: MÊS 4 | J5: MÊS 5 | K5: TOTAL
A6: A | B6: =VLOOKUP(A6,ORÇAMENTO!$A$9:$I$41,2) -> 1 | C6: =VLOOKUP(A6,ORÇAMENTO!$A$9:$I$41,3) -> SERVIÇOS PRELIMINARES | D6: FISICO | E6: =ROUND(E7/$G$2,4) -> 0.0709 | F6: 0.2 | G6: 0.2 | H6: 0.2 | I6: 0.2 | J6: 0.2 | K6: =SUM(F6:J6) -> 1
D7: FINANCEIRO | E7: =ORÇAMENTO!I9 -> 117122.68 | F7: =ROUND($E$7*F6,2) -> 23424.54 | G7: =ROUND($E$7*G6,2) -> 23424.54 | H7: =ROUND($E$7*H6,2) -> 23424.54 | I7: 23424.54 | J7: 23424.54 | K7: =SUM(F7:J7)-0.01 -> 117122.69
A8: B | B8: =VLOOKUP(A8,ORÇAMENTO!$A$9:$I$41,2) -> 2 | C8: =VLOOKUP(A8,ORÇAMENTO!$A$9:$I$41,3) -> PAVIMENTAÇÃO | D8: FISICO | E8: =ROUND(E9/$G$2,4) -> 0.2983 | F8: 0.25 | G8: 0.25 | H8: 0.25 | I8: 0.25 | J8: 0 | K8: =SUM(F8:J8) -> 1
D9: FINANCEIRO | E9: =ORÇAMENTO!I15 -> 492750.48 | F9: =ROUND($E$9*F8,2) -> 123187.62 | G9: =ROUND($E$9*G8,2) -> 123187.62 | H9: =ROUND($E$9*H8,2) -> 123187.62 | I9: 123187.62 | J9: 0 | K9: 492750.48
A10: C | B10: =VLOOKUP(A10,ORÇAMENTO!$A$9:$I$41,2) -> 3 | C10: =VLOOKUP(A10,ORÇAMENTO!$A$9:$I$41,3) -> TRANSPORTE DE MATERIAIS | D10: FISICO | E10: =ROUND(E11/$G$2,4) -> 0.0788 | F10: 0.2 | G10: 0.2 | H10: 0.2 | I10: 0.2 | J10: 0.2 | K10: 1
D11: FINANCEIRO | E11: =ORÇAMENTO!I24 -> 130178.06 | F11: =ROUND($E$11*F10,2) -> 26035.61 | G11: =ROUND($E$11*G10,2) -> 26035.61 | H11: =ROUND($E$11*H10,2) -> 26035.61 | I11: 26035.61 | J11: 26035.61 | K11: 130178.05
A12: E | B12: =VLOOKUP(A12,ORÇAMENTO!$A$9:$I$41,2) -> 4 | C12: =VLOOKUP(A12,ORÇAMENTO!$A$9:$I$41,3) -> OBRAS COMPLEMENTARES | D12: FISICO | E12: =ROUND(E13/$G$2,4) -> 0.2431 | G12: 0.25 | H12: 0.25 | I12: 0.25 | J12: 0.25 | K12: 1
D13: FINANCEIRO | E13: =ORÇAMENTO!I27 -> 401514.94 | F13: =ROUND($E$13*F12,2) -> 0 | G13: =ROUND($E$13*G12,2) -> 100378.74 | H13: =ROUND($E$13*H12,2) -> 100378.74 | I13: 100378.74 | J13: 100378.74 | K13: 401514.96
A14: F | B14: =VLOOKUP(A14,ORÇAMENTO!$A$9:$I$41,2) -> 5 | C14: =VLOOKUP(A14,ORÇAMENTO!$A$9:$I$41,3) -> TRANSPORTE DE MATERIAL ASFÁLTICO (BDI DIFERENCIADO) | D14: FISICO | E14: =ROUND(E15/$G$2,4) -> 0.0352 | F14: 0.25 | G14: 0.25 | H14: 0.25 | I14: 0.25 | J14: 0 | K14: 1
D15: FINANCEIRO | E15: =ORÇAMENTO!I34 -> 58121 | F15: =ROUND($E$15*F14,2) -> 14530.25 | G15: =ROUND($E$15*G14,2) -> 14530.25 | H15: =ROUND($E$15*H14,2) -> 14530.25 | I15: 14530.25 | J15: 0 | K15: 58121
A16: G | B16: =VLOOKUP(A16,ORÇAMENTO!$A$9:$I$41,2) -> 6 | C16: =VLOOKUP(A16,ORÇAMENTO!$A$9:$I$41,3) -> FORNECIMENTOS - MATERIAL ASFÁLTICO (BDI DIFERENCIADO) | D16: FISICO | E16: =ROUND(E17/$G$2,4) -> 0.2736 | F16: 0.25 | G16: 0.25 | H16: 0.25 | I16: 0.25 | J16: 0 | K16: 1
D17: FINANCEIRO | E17: =ORÇAMENTO!I37 -> 451978.02 | F17: =ROUND($E$17*F16,2) -> 112994.51 | G17: =ROUND($E$17*G16,2) -> 112994.51 | H17: =ROUND($E$17*H16,2) -> 112994.51 | I17: 112994.51 | J17: 0 | K17: 451978.04
B18: TOTAL | D18: FISICO | E18: =SUM(F18:J18) -> 1.000000006 | F18: =F19/E19 -> 0.1817393341 | G18: =G19/E19 -> 0.2425135947 | H18: =H19/E19 -> 0.2425135947 | I18: =I19/E19 -> 0.2425135947 | J18: =J19/E19 -> 0.09071988791 | K18: 1.000000006
D19: FINANCEIRO | E19: =E11+E9+E7+E13+E17+E15 -> 1651665.18 | F19: =F11+F9+F7+F13+F17+F15 -> 300172.53 | G19: =G11+G9+G7+G13+G17+G15-0.01 -> 400551.26 | H19: =H11+H9+H7+H13+H17+H15-0.01 -> 400551.26 | I19: 400551.26 | J19: 149838.88 | K19: =SUM(F19:J19)-0.01 -> 1651665.18
B21: OBSERVAÇÕES:
